Cogmind - Beta 15 @@@ ROGUE MODE // 2025.07.04 @ 11:40:51 Player: Tereza Result: Destroyed by SI-RAE(j) with Overtuned Pulse Rifle Performance ------------- Evolutions (1) 500 Regions Visited (5) 1000 Robots Destroyed (98) 490 Value Destroyed (3044) 3044 Prototype IDs (18) 360 Alien Tech Used (0) 0 Bonus (1285) 1285 TOTAL SCORE: 6679 Bonus ------- High Alert Combat Kills 79 Follower Combat Kills 414 Registered with UFD 300 Met Optimus in HQ 500 Friendly Fire -8 Cogmind --------- Core Integrity 0/400 Matter 247/300 Energy 100/100 System Corruption 1% Temperature Cool (25) Movement Treading (240) Ox1 Location -9/Scraptown Parts ------- > --- POWER (1) -------- (None) > --- PROPULSION (3) --- Light Treads Light Treads Improved Treads > --- UTILITY (3) ------ Advanced Heat Sink Huge Storage Unit > --- WEAPON (2) ------- Shotgun > --- INVENTORY (25) --- Heavy Ion Engine Light Treads Airjet Advanced Visual Processing Unit Sensor Array Hacking Suite Makeshift Hacking Suite A0-MCA's Component Scanner Particle Cannon Particle Cannon Advanced Beam Cannon Advanced Beam Cannon Shotgun Guided EMP Blaster Datajack Plasma Cutter Peak State ------------ > --- POWER ------------ Heavy Ion Engine > --- PROPULSION ------- Light Treads Light Treads Overtuned Treads > --- UTILITY ---------- Improved Heat Sink Huge Storage Unit Drone Bay > --- WEAPON ----------- Particle Cannon Advanced Beam Cannon > --- INVENTORY -------- Heavy Ion Engine Light Treads Light Treads Light Treads Light Treads Light Treads Improved Treads Advanced Heat Sink Cooling System Advanced Visual Processing Unit Sensor Array Improved Medium Armor Plating Hacking Suite A0-MCA's Component Scanner Particle Cannon Advanced Beam Cannon Advanced Beam Cannon Advanced Beam Cannon Shotgun Shotgun Guided EMP Blaster Rocket Launcher Datajack Plasma Cutter [Rating: 28] Favorites ----------- Power Heavy Ion Engine Engine Heavy Ion Engine Power Core Light Nuclear Core Propulsion Light Treads Treads Light Treads Wheel Wheel Utility Huge Storage Unit Device Improved Heat Sink Storage Huge Storage Unit Processor Improved Targeting Computer Protection Light Armor Plating Weapon Particle Cannon Energy Gun Small Laser Energy Cannon Particle Cannon Ballistic Gun Light Assault Rifle Launcher Grenade Launcher Build | -11 -10 -9 -9 -9 -9 ------- Run | Yrd Mat Mat Sto Rec Scr Slots Evolved 2 | . . 2 . . . Power . | . . . . . . Propulsion 1 | . . 1 . . . Utility 1 | . . 1 . . . Weapon . | . . . . . . Parts Attached 59 | 5 13 12 12 1 16 Power 4 | 1 1 1 1 . . Engine 3 | 1 1 . 1 . . Core 1 | . . 1 . . . Reactor . | . . . . . . Propulsion 24 | 1 3 6 5 1 8 Treads 23 | 1 2 6 5 1 8 Leg . | . . . . . . Wheel 1 | . 1 . . . . Hover . | . . . . . . Flight . | . . . . . . Utility 16 | 1 5 5 2 . 3 Device 6 | . . 2 2 . 2 Storage 3 | 1 2 . . . . Processor 2 | . 2 . . . . Hackware . | . . . . . . Protection 5 | . 1 3 . . 1 Artifact . | . . . . . . Weapon 15 | 2 4 . 4 . 5 Energy Gun 2 | 1 . . 1 . . Energy Cannon 5 | . 2 . 1 . 2 Ballistic Gun 5 | 1 2 . 1 . 1 Ballistic Cannon . | . . . . . . Launcher 3 | . . . 1 . 2 Special Weapon . | . . . . . . Impact Weapon . | . . . . . . Slashing Weapon . | . . . . . . Piercing Weapon . | . . . . . . Special Melee Weapon . | . . . . . . Unidentified Prototypes 4 | . . . 3 . 1 Parts Lost 20 | . 7 1 . . 12 Power 2 | . 1 . . . 1 Propulsion 7 | . 2 1 . . 4 Utility 5 | . 1 . . . 4 Weapon 6 | . 3 . . . 3 Highest Loss Streak 6 | . 6 1 . . 6 To Critical Strikes . | . . . . . . Average Backups 21 | 4 12 21 24 24 23 Power . | . . . 1 1 1 Propulsion 5 | 2 3 6 7 7 5 Utility 4 | . 2 4 5 4 6 Weapon 8 | 1 5 8 9 10 8 Tool/Special . | . . . . . . Unused Backups 24 | . 1 . 5 1 17 Power 3 | . . . 2 . 1 Propulsion 3 | . . . . . 3 Utility 7 | . . . . 1 6 Weapon 9 | . 1 . 3 . 5 Tool/Special 2 | . . . . . 2 Average Slot Usage (%) 98 | . 95 97 99 100 99 Engine 8 | . 13 6 2 11 10 Core 2 | . . 4 8 . . Treads 30 | . 20 30 32 33 32 Wheel 1 | . 6 1 . . . Device 13 | . . 10 12 22 21 Storage 11 | . 14 11 11 11 11 Processor 1 | . 5 3 . . . Protection 4 | . 5 7 9 . . Energy Cannon 19 | . 13 21 19 22 21 Ballistic Gun 2 | . 13 . . . . Peak Build Rating 28 | 5 12 16 25 25 28 Average Rating 18 | 3 9 14 19 25 25 On Entrance 13 | . 5 12 16 25 25 Naked Turns . | . . . . . . Heaviest Build 104 | 13 93 97 103 103 104 Greatest Support 60 | 20 40 60 60 60 60 Greatest Overweight (x) 9 | . 9 9 1 1 1 Average Overweight (x) 2 | . 5 1 1 1 1 Largest Inventory Capacity 25 | 8 25 25 25 25 25 Average Capacity 24 | 7 22 25 25 25 25 Most Carried 25 | 6 16 25 25 25 25 Average Carried 21 | 4 12 21 24 25 24 Final Capacity 25 | 8 25 25 25 25 25 Final Carried 25 | 5 16 25 25 25 17 Class Distribution -------------------- 59% | Mutant 38% | Scavenger-Mutant Dominant Class ---------------- Mutant | -10/Materials Mutant | -9/Materials Scavenger-Mutant | -9/Storage Scavenger-Mutant | -9/Recycling Mutant | -9/Scraptown Resources | -11 -10 -9 -9 -9 -9 ----------- Run | Yrd Mat Mat Sto Rec Scr Matter Collected 1035 | 236 225 130 255 10 179 Remotely . | . . . . . . Salvage Created 3982 | . 502 1467 1227 111 675 Parts 218 | . 32 84 69 3 30 Haulers Intercepted 5 | . 2 3 . . . Recyclers Shooed 1 | . . . 1 . . Parts Field Recycled . | . . . . . . Retrieved Matter . | . . . . . . Parts Self-Destructed . | . . . . . . Prevented . | . . . . . . Kills | -11 -10 -9 -9 -9 -9 ------- Run | Yrd Mat Mat Sto Rec Scr Combat Hostiles Destroyed 80 | . 15 25 24 2 14 Guns 13 | . 10 . . . 3 Cannons 58 | . 5 25 19 2 7 AOE 9 | . . . 5 . 4 Classes Destroyed 15 | . 5 4 2 . 4 Worker 1 | . . . 1 . . Hauler 5 | . 2 3 . . . Recycler 4 | . . 3 1 . . Mechanic 1 | . . 1 . . . Operator 2 | . 1 . 1 . . Watcher 5 | . 1 3 1 . . Swarmer 15 | . 9 6 . . . Grunt 32 | . 6 12 14 . . Duelist 2 | . . 1 1 . . Protector 1 | . . . 1 . . Sentry 16 | . . 6 8 2 . Federalist 3 | . . . . . 3 Explorer 4 | . . . . . 4 Ranger 2 | . . . . . 2 Scrapper 4 | . . . . . 4 Thug 1 | . . . . . 1 Best Kill Streak 9 | . 4 3 6 1 9 Combat Bots Only 9 | . 4 3 6 1 9 Max Kills in Single Turn 2 | . 1 2 2 1 1 Gunslinging . | . . . . . . Exploded 2 | . . . 2 . 1 Melee . | . . . . . . Uniques/NPCs Destroyed . | . . . . . . Combat | -11 -10 -9 -9 -9 -9 -------- Run | Yrd Mat Mat Sto Rec Scr Hostile Shots Fired 426 | . 125 83 43 12 163 Missed 110 | . 21 26 12 5 46 Hits 316 | . 104 57 31 7 117 Melee 8 | . . . 2 . 6 Projectile 308 | . 104 57 29 7 111 Critical Strikes 9 | . . . 2 . 7 Damage Taken 4250 | . 1020 611 555 99 1965 Core 591 | . 172 59 56 12 292 Absorbed by Shields . | . . . . . . Redirected to Shielding 52 | . 52 . . . . Regen/Repaired (Parts) 208 | . . 89 119 . . Core Remaining (%) 65 | 100 31 . . . . Volleys Fired 239 | . 68 63 53 8 47 Largest 2 | . 2 2 2 2 2 Hottest 136 | . 136 136 136 136 136 Shots Fired 457 | . 129 126 105 16 81 Gun 118 | . 101 . . . 17 Cannon 329 | . 28 126 100 16 59 Launcher 10 | . . . 5 . 5 Special . | . . . . . . Kinetic 104 | . 87 . . . 17 Thermal 343 | . 42 126 100 16 59 Explosive 9 | . . . 5 . 4 Electromagnetic 1 | . . . . . 1 Robot Hit Streak 13 | . 11 13 7 7 9 Robot Miss Streak 6 | . 4 3 6 2 3 Penetration Max . | . . . . . . Secondary Targets 1 | . 1 . . . . Max Gunslinging Chain 1 | . 1 . . . . Shots Hit Robots 277 | . 84 71 56 11 55 Core Hits 139 | . 31 37 43 2 26 Critical Kills . | . . . . . . Critical Parts Destroyed . | . . . . . . Critical Strikes . | . . . . . . Melee Attacks . | . . . . . . Impact . | . . . . . . Slashing . | . . . . . . Piercing . | . . . . . . Sneak Attacks . | . . . . . . Combat Hostiles . | . . . . . . Follow-up Attacks . | . . . . . . Damage Inflicted 5948 | . 962 1631 1693 244 1418 Guns 873 | . 664 . . . 209 Cannons 4231 | . 298 1631 1198 244 860 Explosions 844 | . . . 495 . 349 Melee . | . . . . . . Ramming . | . . . . . . Kinetic 750 | . 541 . . . 209 Thermal 4354 | . 421 1631 1198 244 860 Explosive 791 | . . . 495 . 296 Electromagnetic 53 | . . . . . 53 Impact . | . . . . . . Slashing . | . . . . . . Piercing . | . . . . . . Highest Corruption 1 | . . . 1 1 1 Average Corruption 1 | . . . 1 1 1 Corruption Purged . | . . . . . . Corruption Blocked . | . . . . . . Effects 19 | . . . 12 4 3 Message Errors 6 | . . . 4 1 1 Matter Fused 3 | . . . 3 . . Heat Flow Errors 2 | . . . 1 . 1 Energy Discharges 2 | . . . . 2 . Data Loss (minor) 3 | . . . 2 1 . Data Loss (major) 1 | . . . . . 1 Misfires 1 | . . . 1 . . Alerts 1 | . . . 1 . . Overload Shots . | . . . . . . Overflow Damage 56 | . 16 3 20 . 17 Projectiles 51 | . 16 3 15 . 17 Explosions 5 | . . . 5 . . Melee . | . . . . . . Knockbacks . | . . . . . . Impact . | . . . . . . Kinetic . | . . . . . . Secondary . | . . . . . . Self-Inflicted Damage 1 | . . . . . 1 Shots 1 | . . . . . 1 Rammed . | . . . . . . Targets Rammed . | . . . . . . Kicked . | . . . . . . Crushed . | . . . . . . Highest Temperature 344 | . 300 252 344 180 337 Average Temperature 85 | . 76 79 74 79 130 Received Heat Transfer 1457 | . 321 168 186 36 746 Effects 6 | . . 3 . . 3 Interference 6 | . . 3 . . 3 Siege Activations . | . . . . . . Martial Activations . | . . . . . . Shielding Activations . | . . . . . . Robots Disrupted . | . . . . . . Combat Hostiles . | . . . . . . Robots Corrupted . | . . . . . . Combat Hostiles . | . . . . . . Parts Fried . | . . . . . . Impact Corruptions . | . . . . . . Robots Melted . | . . . . . . Combat Hostiles . | . . . . . . Parts Melted 17 | . . 11 2 2 2 Heat Transferred 7388 | . 793 2775 2027 407 1386 Parts Sabotaged . | . . . . . . Parts Stolen . | . . . . . . Parts Stripped . | . . . . . . Power Chain Reactions . | . . . . . . Alert | -11 -10 -9 -9 -9 -9 ------- Run | Yrd Mat Mat Sto Rec Scr Maximum Alert Level 2 | . . 1 2 . . Low Security (%) 74 | 100 100 95 27 100 . Level 1 20 | . . 4 57 . . Level 2 4 | . . . 15 . . Level 3 . | . . . . . . Level 4 . | . . . . . . Level 5 . | . . . . . . High Security . | . . . . . . Max Security . | . . . . . . Peak Influence 660 | . 85 213 660 155 . Initial 145 | . . 10 85 145 . Average 139 | . 24 102 294 63 . Influence Increases 2710 | . 414 732 1429 135 . Destroy 0b10 Robot/C 1580 | . 300 500 740 40 . Destroy 0b10 Robot/NC 125 | . 20 50 55 . . Destroy Leader 394 | . 66 132 196 . . Allied During Kill 143 | . . . 143 . . Successful Hack 83 | . 13 32 33 5 . Select Force Hacks 90 | . . . . 90 . Disable Machine 75 | . 15 15 45 . . Anti-Garrison Action 150 | . . . 150 . . Destroy Structure 25 | . . 3 22 . . Lose Combat Pursuer 45 | . . . 45 . . Influence Decreases 2710 | . 389 554 1258 509 . Entered New Map 362 | . . 15 118 229 . Time Decay 1794 | . 345 529 640 280 . Lost Part 54 | . 44 10 . . . Lost Ally 200 | . . . 200 . . Purge Threat 300 | . . . 300 . . Squads Dispatched 11 | . 2 2 7 . . Investigation 5 | . 2 2 1 . . Extermination . | . . . . . . Reinforcement 1 | . . . 1 . . Assault 4 | . . . 4 . . Garrison 1 | . . . 1 . . Intercept . | . . . . . . Searches Triggered . | . . . . . . Construction Impeded . | . . . . . . Haulers Reinforced . | . . . . . . Active Scanning Responses . | . . . . . . Cargo Convoy Interrupts . | . . . . . . Stealth | -11 -10 -9 -9 -9 -9 --------- Run | Yrd Mat Mat Sto Rec Scr Distress Signals 4 | . . 3 1 . . Communications Jammed . | . . . . . . Distress Signals . | . . . . . . Times Spotted 148 | . 29 38 45 2 34 Peak Tracking Total 8 | . 6 5 8 1 8 Tactical Retreats 2 | . . . 2 . . Traps | -11 -10 -9 -9 -9 -9 ------- Run | Yrd Mat Mat Sto Rec Scr Traps Triggered 7 | . 3 1 3 . . Indirectly . | . . . . . . Trap Hack Attempts . | . . . . . . Triggered . | . . . . . . Disarmed . | . . . . . . Reprogrammed . | . . . . . . Reused . | . . . . . . Traps Extracted . | . . . . . . Installed . | . . . . . . Triggered . | . . . . . . Machines | -11 -10 -9 -9 -9 -9 ---------- Run | Yrd Mat Mat Sto Rec Scr Machines Disabled 7 | . 1 1 4 . 1 Max in Single Turn 1 | . 1 1 1 . 1 Garrison Access 1 | . . . 1 . . Machines Repaired . | . . . . . . Machines Dismantled . | . . . . . . Machines Sabotaged . | . . . . . . Overloaded Fab Kills . | . . . . . . Hacking | -11 -10 -9 -9 -9 -9 --------- Run | Yrd Mat Mat Sto Rec Scr Machines Accessed 35 | . 6 9 11 4 5 Terminals 22 | . 6 7 8 1 . Fabricators . | . . . . . . Repair Stations 3 | . . 1 2 . . Recycling Units 5 | . . 1 1 3 . Scanalyzers . | . . . . . . Garrison Access . | . . . . . . Total Hacks 101 | . 13 23 26 7 32 Successful 77 | . 7 14 17 7 32 Failed 23 | . 6 8 9 . . Catastrophic 4 | . 2 2 . . . Database Lockouts 1 | . . 1 . . . Manual 22 | . 8 3 8 3 . Terminals 54 | . 13 20 19 2 . Fabricators . | . . . . . . Repair Stations 6 | . . 2 4 . . Recycling Units 9 | . . 1 3 5 . Scanalyzers . | . . . . . . Garrison Access . | . . . . . . Terminal Hacks 62 | . 7 10 11 2 32 Record 26 | . . . . . 26 Robot Analysis 10 | . 4 1 . . 5 Prototype ID Bank 5 | . 1 2 1 1 . Open Door 4 | . . . 4 . . Branch Access Points 1 | . . 1 . . . Emergency Access Points 1 | . . 1 . . . Alert Level 4 | . . 1 2 1 . Unreport Threat 2 | . . . 2 . . Locate Traps 1 | . . 1 . . . Hauler Manifests 3 | . 1 1 1 . . Zone Layout 4 | . 1 2 1 . . Proto ID Catalog 1 | . . . . . 1 Fabricator Hacks . | . . . . . . Repair Station Hacks 6 | . . 2 4 . . Scan Component 3 | . . 1 2 . . Repair 3 | . . 1 2 . . Recycling Unit Hacks 5 | . . 1 2 2 . Report Inventory 3 | . . 1 1 1 . Retrieve Components 2 | . . . 1 1 . Scanalyzer . | . . . . . . Garrison Access Hacks . | . . . . . . Unauthorized Hacks 4 | . . 1 . 3 . Terminals 1 | . . 1 . . . Disrupt 1 | . . 1 . . . Fabricators . | . . . . . . Repair Stations . | . . . . . . Recycling Units 3 | . . . . 3 . Tunnel 3 | . . . . 3 . Scanalyzers . | . . . . . . Garrison Access . | . . . . . . Data Cores Recovered 3 | . 1 . 2 . . Used 1 | . 1 . . . . Hacking Detections 16 | . 4 5 6 1 . Full Trace Events 3 | . . 1 2 . . Feedback Events . | . . . . . . Feedback Blocked . | . . . . . . Robot Schematics Acquired . | . . . . . . Robots Built . | . . . . . . Authchips . | . . . . . . Time . | . . . . . . Total Robot Build Rating . | . . . . . . Part Schematics Acquired . | . . . . . . Parts Built . | . . . . . . Authchips . | . . . . . . Time . | . . . . . . Total Part Build Rating . | . . . . . . Parts Repaired 3 | . . 1 2 . . Time 84 | . . 32 52 . . Parts Recycled . | . . . . . . Recycled Matter . | . . . . . . Retrieved Matter . | . . . . . . Retrieved Components 11 | . . . 9 2 . Parts Scanalyzed . | . . . . . . Part Schematics Acquired . | . . . . . . Parts Damaged . | . . . . . . Bothacking | -11 -10 -9 -9 -9 -9 ------------ Run | Yrd Mat Mat Sto Rec Scr Used RIF Installer . | . . . . . . Robots Hacked . | . . . . . . Non-combat . | . . . . . . Combat . | . . . . . . Robot Hacks Applied . | . . . . . . Relay Couplers Released 2 | . . . 2 . . Machine Destruction 2 | . . . 2 . . Fabnet Peak Effective % . | . . . . . . Robots Rewired . | . . . . . . Allies Hacked . | . . . . . . Hacks Repelled . | . . . . . . Allies | -11 -10 -9 -9 -9 -9 -------- Run | Yrd Mat Mat Sto Rec Scr Total Allies 12 | . . . 12 . . Largest Group 10 | . . . 10 . . Highest-Rated Group 88 | . . . 88 . . Highest-Rated Ally 31 | . . . 31 . . Total Orders . | . . . . . . Ally Attacks 115 | . . . 115 . . Total Damage 1223 | . . . 1223 . . Kills 19 | . . . 19 . . Allies Corrupted . | . . . . . . Allies Melted 11 | . . . . . 11 Intel | -11 -10 -9 -9 -9 -9 ------- Run | Yrd Mat Mat Sto Rec Scr Active Infowar (turns) . | . . . . . . Robot Analysis Total 10 | . 4 1 . . 5 Derelict Logs Recovered . | . . . . . . Drone Launches . | . . . . . . Drone Recoveries . | . . . . . . Exploration | -11 -10 -9 -9 -9 -9 ------------- Run | Yrd Mat Mat Sto Rec Scr Turns Passed 10112 | 69 1880 2038 2281 631 3213 Spaces Moved 3799 | 39 677 749 807 253 1274 Core 5 | 5 . . . . . Treads 3314 | 34 280 666 807 253 1274 Legs . | . . . . . . Wheels 480 | . 397 83 . . . Hover . | . . . . . . Flight . | . . . . . . Fastest Speed 50 | 50 160 215 240 240 213 Average Speed 237 | 145 233 237 240 240 239 Slowest Speed 480 | 160 480 240 240 240 240 Overloaded Moves . | . . . . . . Propulsion Burnouts . | . . . . . . Robots Hopped . | . . . . . . Potential Cave-ins . | . . . . . . Cave-ins Triggered . | . . . . . . Exploration Rate (%) 71 | 3 97 77 94 68 88 Regions Visited 5 Branch Regions 3 Pre-discovered Areas 5 | . . . 1 3 1 Known Exits Taken 1 | . . 1 . . . Unknown Exits Taken 4 | 1 1 . 1 1 . Scrap Searched 3 | . . . . . 3 Spaces Dug . | . . . . . . Terrain Destroyed 50 | . . . 17 . 33 Melee . | . . . . . . Projectile 1 | . . . . . 1 AOE 49 | . . . 17 . 32 Terrain Rammed . | . . . . . . Walls Destroyed . | . . . . . . Machines Disabled . | . . . . . . Actions | -11 -10 -9 -9 -9 -9 --------- Run | Yrd Mat Mat Sto Rec Scr Total 4476 | 49 862 886 1059 264 1356 Wait 282 | . 86 46 150 . . Move 3794 | 38 676 748 806 252 1274 Hop . | . . . . . . Pick Up 54 | 6 17 11 12 1 7 Fast Attach 14 | 4 3 2 5 . . Attach 22 | 1 7 2 . . 12 Detach 2 | . . . . . 2 Swap 32 | . 4 9 13 1 5 Drop 37 | . 1 5 20 2 9 Fire 239 | . 68 63 53 8 47 Melee . | . . . . . . Ram . | . . . . . . Kick . | . . . . . . Crush . | . . . . . . Escape Stasis . | . . . . . . Rewire . | . . . . . . Trap . | . . . . . . Miscellaneous . | . . . . . . Route ------- -11/Scrapyard -10/Materials (discovered 4 exits: *Mat x3 / [*Min]) -9/Materials (discovered 6 exits: [*Mat x2] / *Min x2 / *Sto x2) -9/Storage (discovered 2 exits: [*Mat] / *Rec) -9/Recycling -9/Scraptown (discovered 2 exits: *Fac x2) History --------- Turn | Location | Event 12 | -11/Scrapyard | Discovered new exit (range 16) 70 | -11/Scrapyard | Entered Materials 332 | -10/Materials | Build established: Mutant 585 | -10/Materials | Discovered new exit (range 13) 968 | -10/Materials | Discovered new exit (range 15) 1022 | -10/Materials | Core integrity fell below 50% 1066 | -10/Materials | Lost 6 parts (1p2n1u2w) 1481 | -10/Materials | Discovered new exit (range 16) 1722 | -10/Materials | Discovered new exit (range 3) 1950 | -10/Materials | Entered another Materials area 1950 | -9/Materials | Evolved 2 slots: Propulsion x1, Utility x1 2378 | -9/Materials | Discovered new exit (range 8) 2564 | -9/Materials | Discovered new exit (range 11) 2628 | -9/Materials | Discovered new exit (range 12) 2664 | -9/Materials | Central database locked down 2859 | -9/Materials | Identified exit to Mines 2859 | -9/Materials | Identified exit to Storage 3609 | -9/Materials | Build established: Scavenger-Mutant 3651 | -9/Materials | Discovered new exit (range 8) 3946 | -9/Materials | Repaired Particle Cannon 3988 | -9/Materials | Entered Storage 4197 | -9/Storage | Met a pair of Derelict thieves 4399 | -9/Storage | Learned location of Armory (-4) 4978 | -9/Storage | Repaired Lgt. Armor Plating 5056 | -9/Storage | Discovered new exit (range 15) 5109 | -9/Storage | Assisted by bots powering up and referring to "LRC-V3" 5354 | -9/Storage | Garrison activated, responded to threat 5519 | -9/Storage | Lost 5 allies 5745 | -9/Storage | Repaired Lgt. Armor Plating 6259 | -9/Storage | Used back door to open Recycling access 6259 | -9/Storage | Discovered new exit (range 5) 6269 | -9/Storage | Entered Recycling 6845 | -9/Recycling | Scanned before Scraplab entrance 6879 | -9/Recycling | Entered Scraplab 6898 | -9/Recycling | Discovered new exit (range 2) 6900 | -9/Recycling | Entered Scraptown 6900 | -9/Scraptown | System corruption cleaned by C-Scrubber 6979 | -9/Scraptown | Heard Great Nut preacher, LISTEN AND RECITE! 7198 | -9/Scraptown | Visited Junk Repository 7255 | -9/Scraptown | Visited The Evicted 7313 | -9/Scraptown | Learned location of Extension (-5) 7622 | -9/Scraptown | Build established: Mutant 7962 | -9/Scraptown | Discovered new exit (range 13) 8037 | -9/Scraptown | Visited Shadow of the Wyrm 8102 | -9/Scraptown | Visited Comm Corps 8217 | -9/Scraptown | Visited Cyclists 8322 | -9/Scraptown | Visited Science Testing Area 8337 | -9/Scraptown | Visited TADAMA 8411 | -9/Scraptown | Visited UFD Registry 8411 | -9/Scraptown | Registered with UFD as "Rusttalker" 8457 | -9/Scraptown | Entered Cyclist Reading Room 8577 | -9/Scraptown | Visited LU-1G1's Boring Crew 8738 | -9/Scraptown | Visited Curators Association 8783 | -9/Scraptown | Visited Junk Repository 9155 | -9/Scraptown | Visited Analyses Database 9206 | -9/Scraptown | Visited Scrapoid Pod Storage 9237 | -9/Scraptown | Visited Scrap Suit Storage 9258 | -9/Scraptown | Visited A0-MCA Data Center 9275 | -9/Scraptown | Given a C+ rating by A0-MCA 9283 | -9/Scraptown | Found A0-MCA's Component Scanner 9373 | -9/Scraptown | Visited Science Guys 9469 | -9/Scraptown | Visited Cartography Club 9709 | -9/Scraptown | Met Optimus 9709 | -9/Scraptown | Accepted into 0bPrime 9808 | -9/Scraptown | Civil war broke out across Scraptown 9871 | -9/Scraptown | Lost 4 allies 9883 | -9/Scraptown | Identified exit to Factory 9944 | -9/Scraptown | Core integrity fell below 50% 9956 | -9/Scraptown | Lost 3 allies 10010 | -9/Scraptown | Lost 6 parts (1n3u2w) 10017 | -9/Scraptown | Core integrity fell below 20% 10089 | -9/Scraptown | Destroyed 9 combat bots 10102 | -9/Scraptown | Optimus destroyed in the chaos of civil war 10113 | -9/Scraptown | Destroyed by SI-RAE(j) with Overtuned Pulse Rifle Last Messages --------------- Gun to repair Ovr. Pulse Rifle. 10102_ ANNOUNCEMENT: The traitor Optimus has been dealt with. Put down any remaining collaborators. 10102_ Penetrated by Bolt. 10102_ Adv. Beam Cannon destroyed. 10102_ HW-K6D(p) destroyed. 10103_ Hvy. Ion Engine destroyed. 10105_ UK-KXK(g): "Stop this nonsense!" 10105_ Bolt penetrates Wall. 10105_ Penetrated by Bolt. 10107_ PQ-WA3(j) suffers critical hit (Burn). 10107_ FM-2CX(j) suffers critical hit (Burn). 10107_ Penetrated by Bolt. 10108_ FM-2CX(j) destroyed. 10111_ SI-RAE(j) cannibalizes Ovr. Titanium Leg to repair Ovr. Titanium Leg. 10111_ PQ-WA3(j) destroyed. 10112_ Critical hit (Burn: +50). 10112_ UK-KXK(g) destroyed. Map ----- +----------------------------------------------------+ | | | | | | | | | | | ?????????????????????????????????????????????????? | | ?????????????????????????????????????????????????? | | ?????????????????????????????????????????????????? | | ?????????????????????????????????????????????????? | | ?????????????????????????????????????????????????? | | ?????????????????????????????????????????????????? | | ?????????????????????????????????????????????????? | | ?????????????????????????????????????????????????? | | ?????????????????????????????????????????????????? | | ?????????????????????????????????????????????????? | | ?????????????????????????????????????????????????? | | ?????????????????????????????????????????????????? | | ?????????????????????????????????????????????????? | | ????????????????????????####?????????????????????? | | ???????????????????????##=!###?????